bitfinex/quotes_ETHUSD_20250722
["timestamp","ask_amount","ask_price","bid_price","bid_amount"]
[1753144435736,3.02970872,3760.8,3760.7,0.001]
[1753144436152,3.27461974,3760.8,3760.7,0.001]
[1753144436645,3.47421653,3760.8,3760.7,0.001]
[1753144437535,3.27461974,3760.8,3760.7,0.001]
[1753144439092,7.57761974,3760.8,3760.7,0.001]
[1753144439435,3.27461974,3760.8,3760.7,0.001]
[1753144439642,6.49828332,3760.8,3760.7,0.001]
[1753144439840,11.34628332,3760.8,3760.7,0.001]
[1753144440040,11.31974475,3760.8,3760.7,0.001]
[1753144440283,7.58683403,3760.8,3760.7,0.001]
[1753144440492,10.44494475,3760.8,3760.7,0.001]
[1753144440851,11.00997863,3760.8,3760.7,0.001]
[1753144441051,11.90277863,3760.8,3760.7,0.001]
[1753144441246,7.58677863,3760.8,3760.7,0.001]
[1753144441666,6.12894475,3760.8,3760.7,0.001]
[1753144441949,10.47148332,3760.8,3760.7,0.001]
[1753144442187,10.44394475,3760.8,3760.7,0.001]
[1753144442375,11.00900549,3760.8,3760.7,0.001]
[1753144443504,11.60900549,3760.8,3760.7,0.001]
[1753144443702,7.29400549,3760.8,3760.7,0.001]
[1753144444211,12.49880549,3760.8,3760.7,0.001]
[1753144444358,7.29400549,3760.8,3760.7,0.001]
[1753144444555,11.60700549,3760.8,3760.7,0.001]
[1753144445152,12.55648968,3760.8,3760.7,0.001]
[1753144445350,11.60700549,3760.8,3760.7,0.001]
[1753144446162,4.63499677,3760.8,3760.7,0.001]
[1753144446468,5.94263534,3760.8,3760.7,0.4313]
[1753144446992,5.94263534,3760.8,3760.7,0.001]
[1753144447156,5.34263534,3760.8,3760.7,0.001]
[1753144447355,5.34263534,3760.8,3760.7,0.4313]
[1753144447557,7.43658332,3760.8,3760.7,0.001]
[1753144447918,4.75103603,3760.8,3760.3,3.08965501]
[1753144448092,0.24491102,3760.7,3760.3,2.65935501]
[1753144448273,4.58044959,3760.6,3760.4,0.4303]
[1753144448598,0.24491102,3760.5,3760.2,0.7942]
[1753144448799,4.55391102,3760.4,3760.2,0.7942]
[1753144449300,4.309,3760.4,3760.3,0.4303]
[1753144449699,0.1328,3760.4,3760.3,0.4303]
[1753144449857,4.4338,3760.4,3760.3,0.4303]
[1753144450313,0.1328,3760.4,3760.3,0.4303]
[1753144450612,0.1328,3760.4,3760.3,3.08966228]
[1753144452777,0.1328,3760.4,3760.3,0.4303]
[1753144453108,0.1328,3760.4,3760.3,3.08966228]
[1753144453461,0.1328,3760.4,3760.3,0.4303]
[1753144454497,0.1328,3760.4,3760.3,3.08966228]
[1753144454680,0.1328,3760.4,3760.3,0.4303]
[1753144455192,0.15933857,3760.4,3760.3,0.4303]
[1753144456003,0.15933857,3760.4,3759.8,2.79249973]
[1753144456004,0.15933857,3760.4,3759.9,0.4303]
[1753144456186,0.1328,3760.0,3759.9,0.4303]
[1753144456565,0.1328,3760.0,3759.9,3.0899452]
[1753144456764,0.1328,3760.0,3759.9,0.4303]
[1753144459182,0.1328,3760.0,3759.5,0.001]
[1753144459183,3.2096452,3759.9,3759.5,0.001]
[1753144459384,11.9467815,3759.6,3759.5,0.001]
[1753144460580,9.28692407,3759.6,3759.5,0.001]
[1753144460785,16.2407815,3759.6,3759.5,0.001]
[1753144461005,16.83934767,3759.6,3759.5,0.001]
[1753144461205,16.83934767,3759.6,3758.4,0.4533]
[1753144461206,14.52229024,3759.6,3758.4,2.66068552]
[1753144461504,14.52229024,3759.6,3758.8,0.8092]
[1753144461505,2.66007057,3759.3,3758.8,0.8092]
[1753144461680,4.88820474,3759.2,3758.8,0.8092]
[1753144462005,4.31753857,3759.2,3758.8,0.8092]
[1753144462216,4.31753857,3759.2,3758.8,3.46958]
[1753144463325,4.288,3759.1,3758.9,0.4533]
[1753144463507,4.288,3759.1,3759.0,0.4533]
[1753144463690,4.287,3759.2,3759.0,0.4533]
[1753144463898,4.287,3759.2,3759.1,3.11350635]
[1753144464211,4.287,3759.2,3759.1,0.4533]
[1753144465276,4.284,3759.2,3759.1,0.4533]
[1753144465709,0.02653857,3759.4,3759.1,0.4533]
[1753144465912,4.284,3759.2,3759.1,0.4533]
[1753144466816,0.02653857,3759.4,3759.1,0.4533]
[1753144466984,4.283,3759.2,3759.1,0.4533]
[1753144467539,2.65985743,3759.6,3759.1,0.4533]
[1753144467826,4.30553857,3759.5,3759.1,0.4533]
[1753144468032,0.02653857,3759.5,3759.1,2.66020966]
[1753144468227,4.278,3759.4,3759.2,0.4533]
[1753144468533,4.30453857,3759.3,3759.2,0.4533]
[1753144468908,4.277,3759.3,3759.2,3.11344045]
[1753144469438,0.1328,3759.3,3759.2,3.11344045]
[1753144469743,0.1328,3759.3,3759.2,0.4533]
[1753144469892,0.15933857,3759.3,3759.2,0.4533]
[1753144470324,0.1328,3759.3,3759.2,0.4533]
[1753144470536,0.15933857,3759.3,3759.2,0.4533]
[1753144471196,0.15933857,3759.3,3758.8,0.8092]
[1753144471555,0.15933857,3759.3,3758.6,2.66055985]
[1753144471556,2.6601829,3759.2,3758.6,2.66055985]
[1753144471836,0.1328,3758.7,3758.2,2.66078866]
[1753144472049,4.4048,3758.7,3758.3,0.4533]
[1753144472189,0.02653857,3758.6,3758.3,0.4533]
[1753144472390,0.22810343,3758.6,3758.3,0.4533]
[1753144472594,0.22810343,3758.6,3758.0,0.8926]
[1753144472595,2.68711556,3758.6,3758.0,2.66098961]
[1753144472859,0.1328,3758.4,3758.3,2.66077747]
[1753144473145,2.66068733,3758.5,3758.0,0.4533]
[1753144473293,4.271,3758.6,3758.0,2.66098149]
[1753144473294,0.1328,3758.1,3758.0,2.66098149]
[1753144473796,0.1328,3758.1,3758.0,0.4533]
[1753144473997,0.1328,3758.1,3758.0,3.11428988]
[1753144474304,0.02653857,3758.5,3758.3,2.66075205]
[1753144474516,0.1328,3758.4,3758.3,2.66075205]
[1753144475118,0.19521733,3758.6,3758.5,2.66063589]
[1753144475317,0.1328,3758.6,3758.5,2.66063589]
[1753144475533,0.1328,3758.6,3758.5,3.11393589]
[1753144476338,0.1328,3758.9,3758.8,2.66042353]
[1753144476700,0.1328,3758.9,3758.8,3.11372353]
[1753144479175,4.265,3759.3,3758.8,3.11372353]
[1753144479176,0.19569605,3759.0,3758.9,2.66035276]
[1753144479606,0.1328,3759.1,3759.0,2.66028198]
[1753144479795,0.1328,3759.1,3759.0,3.11358198]
[1753144480000,4.258,3759.5,3759.4,2.65999893]
[1753144480198,0.02653857,3759.8,3759.4,0.4533]
[1753144480451,0.02653857,3759.8,3759.5,3.11322818]
[1753144480614,4.48022835,3759.8,3759.7,2.65978668]
[1753144480797,0.02653857,3760.1,3759.7,0.4533]
[1753144481014,0.1328,3759.8,3759.7,2.65974522]
[1753144481224,0.1328,3759.8,3759.7,3.48014522]
[1753144481738,0.1328,3759.8,3759.7,3.93344522]
[1753144481945,0.02653857,3760.4,3759.7,1.93569145]
[1753144482109,4.256,3760.5,3760.3,2.65931266]
[1753144482311,0.15933857,3760.4,3760.3,2.65931266]
[1753144482513,0.1328,3760.4,3760.2,2.65941803]
[1753144482706,0.1328,3760.4,3759.8,0.1328]
[1753144483025,0.1328,3760.4,3760.2,0.4533]
[1753144483351,0.1328,3760.4,3760.2,3.11270782]
[1753144483652,0.1328,3760.4,3760.3,3.11266228]
[1753144484164,0.33447584,3760.4,3760.3,3.11266228]
[1753144484648,0.1328,3760.4,3760.3,3.11266228]
[1753144485956,0.7328,3760.4,3760.3,3.11266228]
[1753144488719,0.92841351,3760.4,3760.3,3.11266228]
[1753144493224,0.92841351,3760.4,3760.3,3.89506228]
[1753144493225,0.7328,3760.4,3760.3,3.89506228]
[1753144493426,0.7328,3760.4,3760.3,0.7824]
[1753144493645,0.93252967,3760.4,3760.2,2.65939505]
[1753144493834,0.93252967,3760.4,3760.3,2.65936228]
[1753144494021,0.93252967,3760.4,3760.2,2.659433]
[1753144494227,0.93252967,3760.4,3760.2,3.093833]
[1753144494525,0.93252967,3760.4,3760.3,3.09376228]
[1753144495859,0.93252967,3760.4,3760.3,0.4344]
[1753144496055,0.93252967,3760.4,3760.0,4.231]
[1753144496365,0.93252967,3760.4,3760.3,2.65936228]
[1753144496550,0.93252967,3760.4,3760.3,3.09376228]
[1753144496965,0.7328,3760.4,3760.3,4.0921881]
[1753144497974,0.6,3760.4,3760.3,4.0921881]
[1753144498428,0.6,3760.4,3760.3,4.8821881]
[1753144498628,0.6,3760.4,3760.3,9.1041881]
[1753144498830,0.1328,3760.7,3760.3,8.10469472]
[1753144499032,0.1328,3760.7,3760.4,2.6592838]
[1753144499259,0.1328,3760.7,3760.3,5.4454]
[1753144499260,0.1328,3760.7,3760.5,2.65919528]
[1753144499530,0.1328,3760.7,3760.6,2.65915013]
[1753144499930,4.222,3761.2,3760.9,2.65888956]
[1753144499931,0.02853857,3761.2,3760.9,2.65888956]
[1753144500260,0.02853857,3761.2,3761.0,0.4344]
[1753144500261,0.002,3761.2,3761.0,0.4344]
[1753144500456,0.002,3761.2,3761.0,3.09326316]
[1753144500663,0.002,3761.2,3761.1,0.4344]
[1753144501048,0.002,3761.2,3760.6,4.6534]
[1753144501247,0.1328,3761.1,3760.6,2.65912151]
[1753144501448,0.02653857,3761.0,3760.4,2.65924923]
[1753144501668,0.1328,3760.7,3760.4,4.217]
[1753144501961,0.02653857,3760.6,3760.4,0.4344]
[1753144502159,2.68552436,3760.9,3760.4,0.4344]
[1753144502360,0.02653857,3760.9,3760.5,3.09360118]
[1753144502564,0.02653857,3760.9,3760.6,2.65914283]
[1753144502744,0.02653857,3760.9,3760.6,0.4344]
[1753144503351,0.02653857,3761.0,3760.4,2.65927789]
[1753144503649,0.02653857,3761.0,3760.7,3.09347642]
[1753144503853,0.602,3761.2,3760.8,2.65894262]
[1753144503854,0.62853857,3761.2,3760.8,2.65894262]
[1753144504056,0.1328,3760.9,3760.8,2.65894262]
[1753144504259,0.1328,3760.9,3760.8,3.09334262]
[1753144505234,0.1328,3760.9,3760.5,4.214]
[1753144505429,0.02653857,3760.8,3760.4,4.213]
[1753144505652,0.1328,3760.7,3760.3,0.79]
[1753144505854,0.1328,3760.7,3760.4,7.30568851]
[1753144506160,0.1328,3760.7,3760.5,0.4344]
[1753144506361,0.1328,3760.7,3760.6,0.4344]
[1753144507067,2.65915013,3760.6,3760.1,0.4344]
[1753144507279,0.02653857,3760.5,3760.2,4.211]
[1753144507444,9.28692407,3760.7,3759.9,0.4344]
[1753144507777,0.1328,3759.9,3759.5,2.6599116]
[1753144507943,0.1328,3759.9,3759.3,0.755]
[1753144507944,0.02653857,3759.8,3759.3,3.84945621]
[1753144508127,0.1328,3759.7,3759.4,7.3043964]
[1753144508331,0.1328,3759.7,3759.4,4.6444]
[1753144509132,0.1328,3759.7,3759.4,7.30437417]
[1753144509749,0.1328,3759.7,3759.4,4.6444]
[1753144509950,0.1328,3759.7,3759.4,7.30435569]
[1753144510174,0.1328,3759.7,3759.5,2.6598715]
[1753144510365,0.1328,3759.7,3759.4,7.30438291]
[1753144510672,0.1328,3759.4,3759.2,2.66012647]
[1753144510882,0.1328,3759.4,3759.3,4.207]
[1753144511364,0.1328,3759.4,3759.3,2.66006969]
[1753144511535,0.1328,3759.4,3759.3,3.09446969]
[1753144511737,0.1328,3759.4,3759.3,0.4344]
[1753144512241,0.1328,3759.4,3759.3,3.09446969]
[1753144512751,0.1328,3759.4,3759.2,2.66011603]
[1753144512948,2.65971594,3759.8,3759.1,2.66019157]
[1753144513268,0.1328,3759.2,3759.1,2.66019157]
[1753144513445,0.1328,3759.2,3759.0,4.203]
[1753144513646,0.1328,3759.2,3759.0,3.09466319]
[1753144513848,0.1607,3759.2,3758.8,2.66039723]
[1753144514053,0.0279,3759.2,3758.8,2.66039723]
[1753144514301,0.1328,3759.0,3758.7,2.66047793]
[1753144514574,0.1328,3759.0,3758.9,2.66035276]
[1753144515068,0.1328,3759.4,3759.2,2.66011629]
[1753144515442,0.1328,3759.4,3759.3,2.66006969]
[1753144515856,0.1328,3759.4,3759.3,0.4344]
[1753144516052,0.1328,3759.4,3759.3,2.66006969]
[1753144516253,0.1328,3759.4,3759.3,3.09446969]
[1753144518376,0.1328,3759.4,3758.9,4.9559]
[1753144518377,0.1328,3759.4,3758.9,4.197]
[1753144518694,0.41733857,3759.7,3758.9,4.197]
[1753144518695,0.1328,3759.1,3759.0,2.66027553]
[1753144519082,0.1328,3759.1,3759.0,3.11157553]
[1753144519485,0.1328,3759.1,3759.0,0.4513]
[1753144519863,0.1328,3759.1,3758.8,4.196]
[1753144520062,0.1328,3759.0,3758.8,4.196]
[1753144520281,0.1328,3759.0,3758.7,4.194]
[1753144520492,0.15933857,3759.0,3758.7,4.194]
[1753144520788,0.15933857,3759.0,3758.4,0.4523]
[1753144520789,0.1328,3758.7,3758.4,0.001]
[1753144520986,0.1328,3758.5,3758.4,2.66170668]
[1753144521411,0.1328,3758.5,3758.4,3.11300668]
[1753144522056,0.1328,3758.5,3758.4,0.001]
[1753144522490,0.1328,3758.5,3758.4,2.66170668]
[1753144522990,0.1328,3758.5,3758.4,3.11300668]
[1753144524471,0.1328,3758.5,3758.4,4.6433]
[1753144524675,0.1328,3758.5,3758.4,7.30400668]
[1753144526467,10.32998523,3758.5,3758.4,0.001]
[1753144526801,4.2199,3758.5,3758.4,0.001]
[1753144526983,4.24643857,3758.5,3758.4,0.001]
[1753144527695,6.90707446,3758.5,3758.4,0.001]
[1753144527886,6.88053589,3758.5,3758.4,0.001]
[1753144528202,4.2199,3758.5,3758.4,0.001]
[1753144528509,4.24643857,3758.5,3758.4,0.001]
[1753144528957,4.24443857,3758.5,3758.4,0.001]
[1753144529159,4.21653857,3758.5,3758.4,0.001]
[1753144529364,4.21453857,3758.5,3758.4,0.001]
[1753144530180,4.188,3758.5,3758.4,0.001]
[1753144531600,4.185,3758.6,3758.4,0.001]
[1753144531774,0.22198175,3758.7,3758.4,0.001]
[1753144531775,0.22198175,3758.7,3758.4,3.11299767]
[1753144531975,0.19544318,3758.7,3758.6,2.6605651]
[1753144532170,0.02653857,3758.8,3758.5,3.11190943]
[1753144532374,0.02653857,3758.8,3758.6,2.66056245]
[1753144532918,0.02653857,3758.8,3758.5,3.1119103]
[1753144533071,0.02653857,3758.8,3758.5,0.4513]
[1753144533868,0.2265367,3758.8,3758.5,0.4513]
[1753144534111,0.2265367,3758.8,3758.5,3.1119116]
[1753144534341,0.2265367,3758.8,3758.5,0.4513]
[1753144535015,0.0279,3758.5,3758.4,0.001]
[1753144535190,0.0279,3754.1,3751.8,14.75096795]
[1753144535390,0.0279,3754.1,3750.6,0.8021]
[1753144535391,0.09972979,3752.2,3751.3,0.4513]
[1753144535704,8.87791815,3752.2,3752.1,0.02]
[1753144536009,13.77979653,3752.2,3752.1,0.02]
[1753144536211,13.70891815,3752.2,3752.1,1e-08]
[1753144536512,16.70891815,3752.2,3752.1,1e-08]
[1753144536876,17.27628973,3752.2,3752.1,1e-08]
[1753144537378,11.1632045,3752.2,3752.1,1e-08]
[1753144537573,12.71477038,3752.2,3752.1,1e-08]
[1753144537802,12.91032056,3752.2,3752.1,1e-08]
[1753144538216,12.19855468,3752.2,3752.1,1e-08]
[1753144538451,13.13612711,3752.2,3752.1,1e-08]
[1753144538743,13.13612711,3752.2,3749.3,2.66712444]
[1753144538744,2.76554339,3751.2,3750.5,1.2241]
[1753144539038,3.33291497,3751.2,3750.5,0.4513]
[1753144540325,8.15891497,3751.2,3750.3,0.4513]
[1753144540526,9.5578569,3751.2,3750.3,0.4513]
[1753144540731,8.15891497,3751.2,3750.3,0.4513]
[1753144541034,0.09972979,3750.3,3750.1,0.02]
[1753144541251,1.26682439,3750.2,3750.1,0.02]
[1753144541737,0.56737158,3750.2,3750.1,0.02]
[1753144541895,3.2604346,3750.2,3750.1,0.02]
[1753144542091,10.31914023,3750.2,3750.1,0.02]
[1753144542326,0.09972979,3749.4,3749.1,0.02]
[1753144542510,0.56737158,3749.3,3749.1,0.02]
[1753144542705,3.33433704,3749.2,3749.1,0.02]
[1753144543133,3.5758172,3749.2,3749.1,0.02]
[1753144543327,3.8656172,3749.2,3749.1,0.02]
[1753144543540,3.89215577,3749.2,3749.1,0.02]
[1753144543844,1.63013338,3749.2,3749.1,0.02]
[1753144544050,6.44313338,3749.2,3749.1,0.02]
[1753144544353,6.2981201,3749.2,3749.1,0.02]
[1753144544564,10.64183499,3749.2,3749.1,0.02]
[1753144544710,0.55,3748.7,3748.1,0.02]
[1753144544911,0.67762979,3748.2,3748.1,0.02]
[1753144545163,0.09972979,3747.2,3747.1,0.02]
[1753144545341,0.09972979,3747.2,3747.1,2.68873048]
[1753144545659,0.20033628,3748.2,3747.6,2.66837442]
[1753144545660,0.09972979,3747.7,3747.6,2.66837442]
[1753144546025,0.29494974,3748.2,3747.9,2.66816083]
[1753144546226,0.09972979,3748.5,3748.4,2.66780493]
[1753144546429,0.09972979,3749.0,3748.9,2.66744911]
[1753144546627,0.09972979,3749.0,3748.9,3.11874911]
[1753144546964,0.58465156,3749.9,3748.9,0.4513]
[1753144546965,0.02653857,3749.8,3748.9,0.4513]
[1753144547177,0.12626836,3749.8,3749.7,2.66688001]
[1753144547313,0.23985585,3749.8,3749.7,3.09938001]
[1753144547748,0.09972979,3750.3,3749.7,0.4325]
[1753144547917,0.23989308,3750.2,3750.1,2.66659555]
[1753144548118,0.23989308,3750.2,3750.1,3.09909555]
[1753144548441,0.09972979,3750.8,3750.7,2.66616898]
[1753144548816,0.09972979,3750.8,3750.7,3.09866898]
[1753144549030,0.09972979,3750.8,3750.7,2.66616898]
[1753144549245,0.09972979,3750.4,3749.4,3.0]
[1753144549473,0.09972979,3750.4,3749.9,2.66672938]
[1753144549675,0.09972979,3750.1,3750.0,2.66665819]
[1753144550273,0.09972979,3750.1,3749.5,0.4325]
[1753144550483,0.1328,3749.7,3749.5,0.4325]
[1753144550662,0.1328,3749.7,3749.6,2.66695114]
[1753144550860,0.1328,3749.7,3749.6,2.89945114]
[1753144552656,0.09972979,3750.1,3750.0,2.66666666]
[1753144552958,0.09972979,3750.3,3750.0,2.66662873]
[1753144553268,0.1328,3750.0,3749.7,3.09936055]
[1753144553461,0.1328,3750.0,3749.7,0.4325]
[1753144553697,0.09972979,3750.1,3749.4,2.66707837]
[1753144553901,0.1328,3749.8,3749.3,0.7999]
[1753144554270,0.1328,3749.8,3749.4,0.4325]
[1753144554791,0.1328,3749.8,3749.5,0.4325]
[1753144554960,0.00427547,3749.7,3749.5,0.4325]
[1753144555465,0.00427547,3749.7,3749.6,0.4325]
[1753144556549,0.00427547,3749.7,3749.3,0.7999]
[1753144556752,0.10400526,3749.7,3749.4,2.66704302]
[1753144556952,0.10400526,3749.7,3749.4,0.4325]
[1753144557185,0.02653857,3749.6,3749.1,0.4325]
[1753144557361,0.1328,3749.3,3749.2,2.66716671]
[1753144557567,0.00427547,3749.5,3749.4,2.6670934]
[1753144558180,0.00427547,3749.5,3749.4,3.0995934]
[1753144559294,0.00427547,3749.5,3749.4,0.4325]
[1753144559498,0.00427547,3749.5,3749.4,3.0995934]
[1753144561265,0.00427547,3749.5,3749.3,2.66716445]
[1753144561569,0.09972979,3749.2,3749.0,3.09985586]
[1753144561759,0.56208916,3749.1,3749.0,7.83585586]
[1753144562159,0.56208916,3749.1,3749.0,3.09985586]
[1753144563298,1.25938183,3749.1,3749.0,3.09985586]
[1753144563590,1.50266315,3749.1,3749.0,7.83385586]
[1753144563794,0.80537048,3749.1,3749.0,3.09985586]
[1753144563965,0.80537048,3749.1,3749.0,7.82485586]
[1753144564160,1.72697706,3749.1,3749.0,3.09985586]
[1753144564392,0.80537048,3749.1,3749.0,7.82285586]
[1753144564979,0.80537048,3749.1,3749.0,7.39035586]
[1753144565181,1.05080494,3749.1,3749.0,2.66735586]
[1753144565372,1.05080494,3749.1,3749.0,7.38235586]
[1753144565572,1.05080494,3749.1,3748.7,0.4325]
[1753144565768,1.05080494,3749.1,3746.3,7.31537998]
[1753144565769,0.09972979,3748.8,3748.2,0.4325]
[1753144565975,1.41590331,3748.5,3748.4,2.66780493]
[1753144566305,1.04652947,3748.5,3748.4,3.10030493]
[1753144566473,1.14625926,3748.5,3748.4,2.66780493]
[1753144566666,0.1328,3748.4,3748.3,2.6678761]
[1753144566896,2.60310174,3748.4,3748.3,2.6178761]
[1753144567302,2.6032737,3748.4,3748.3,2.6178761]
[1753144567596,2.60326344,3748.4,3748.3,3.0503761]
[1753144567799,1.89896839,3748.9,3748.8,2.66752027]
[1753144568003,0.1328,3749.1,3749.0,2.49406689]
[1753144568199,0.1328,3749.1,3749.0,3.09987796]
[1753144568698,1.99869818,3749.5,3749.4,2.6670934]
[1753144568875,0.09972979,3749.5,3749.4,3.0995934]
[1753144569204,0.09972979,3749.4,3749.3,2.66715063]
[1753144569404,0.23252979,3749.2,3749.0,4.704]
[1753144569566,0.73698302,3749.1,3749.0,4.704]
[1753144569763,0.81017424,3749.2,3749.1,2.66730682]
[1753144569962,0.81017424,3749.2,3749.0,4.704]
[1753144569963,0.12626836,3749.2,3749.0,4.704]
[1753144570169,0.12626836,3749.2,3747.9,0.4325]
[1753144570170,0.09972979,3748.8,3747.9,0.4325]
[1753144570400,0.09972979,3748.5,3748.4,2.66780493]
[1753144570702,0.09972979,3748.5,3748.3,2.66782992]
[1753144570900,0.02653857,3748.4,3748.2,7.36794297]
[1753144571087,0.02653857,3748.4,3748.3,2.6678761]
[1753144571402,0.02653857,3748.4,3748.2,4.7]
[1753144571403,0.1328,3748.3,3748.2,4.7]
[1753144571697,0.1328,3748.3,3747.8,2.66822085]
[1753144571698,0.09972979,3748.2,3747.5,0.4325]
[1753144571904,0.09972979,3747.7,3747.4,2.66845459]
[1753144572069,0.09972979,3747.7,3747.1,0.4525]
[1753144572265,2.76803301,3747.7,3747.1,0.02]
[1753144572487,3.50520942,3747.7,3747.1,0.02]
[1753144572703,2.79457158,3747.7,3747.1,0.02]
[1753144573064,3.08437158,3747.7,3747.1,0.02]
[1753144573504,3.08437158,3747.7,3747.3,2.66858531]
[1753144573505,1.07231382,3747.7,3747.3,2.66858531]
[1753144573969,0.12626836,3747.7,3747.4,2.66850992]
[1753144574170,0.12626836,3747.7,3747.3,2.66857341]
[1753144574416,0.41606836,3747.7,3747.1,0.02]
[1753144574579,0.12626836,3747.7,3747.1,0.02]
[1753144574768,0.12626836,3747.7,3747.3,2.6685801]
[1753144574968,0.12626836,3747.7,3747.1,0.02]
[1753144575513,0.12626836,3747.7,3747.1,2.68868326]
[1753144575696,2.79457158,3747.7,3747.1,0.02]
[1753144575900,0.12626836,3747.7,3747.3,2.66858336]
[1753144576286,0.12626836,3747.7,3747.2,2.66864695]
[1753144576486,0.12626836,3747.7,3747.1,0.02]
[1753144577087,0.12626836,3747.7,3747.2,2.66863372]
[1753144577488,0.12626836,3747.7,3747.3,2.66853832]
[1753144577784,0.12626836,3747.7,3747.2,2.66864582]
[1753144577979,0.12626836,3747.7,3747.1,0.02]
[1753144578182,0.09972979,3747.7,3747.6,2.66937442]
[1753144578380,0.12626836,3748.0,3747.9,2.66816083]
[1753144578586,0.09972979,3748.0,3747.9,3.09626083]
[1753144579105,0.02653857,3748.4,3748.3,2.6678761]
[1753144579311,0.1328,3748.3,3748.1,2.66795694]
[1753144579559,0.05443857,3748.7,3748.1,2.66795694]
[1753144579703,0.1328,3748.1,3748.0,2.66806715]
[1753144579902,2.72205349,3748.7,3747.6,0.5347834]
[1753144579903,0.09972979,3747.8,3747.6,0.5347834]
[1753144580147,0.09972979,3747.8,3747.7,2.66825511]
[1753144580348,0.1328,3747.7,3747.6,2.66936106]
[1753144580656,0.1328,3747.7,3747.6,0.001]
[1753144580950,0.15933857,3747.7,3747.6,0.001]
[1753144581936,0.1328,3747.7,3747.6,0.001]
[1753144582108,0.15933857,3747.7,3747.6,0.001]
[1753144583319,0.1328,3747.7,3747.6,0.001]
[1753144583649,0.15933857,3747.7,3747.6,0.001]
[1753144584808,0.1328,3747.7,3747.6,0.001]
[1753144586067,0.1328,3747.7,3747.6,3.09747442]
[1753144586263,0.23252979,3747.7,3747.6,3.67406759]
[1753144586469,0.56704562,3748.3,3748.2,2.66794728]
[1753144586759,0.09972979,3748.2,3747.9,2.6681181]
[1753144586923,0.1328,3748.0,3747.9,2.6681181]
[1753144587456,0.09972979,3747.7,3747.6,4.629]
[1753144587621,0.09972979,3747.7,3747.6,0.001]
[1753144587803,2.76803301,3747.7,3747.6,0.001]
[1753144588004,0.12626836,3747.7,3747.6,0.001]
[1753144588210,0.69374618,3747.7,3747.6,0.001]
[1753144589342,3.3620494,3747.7,3747.6,0.001]
[1753144589739,0.69374618,3747.7,3747.6,0.001]
[1753144590437,0.12626836,3747.7,3747.6,0.001]
[1753144590638,2.79457158,3747.7,3747.6,0.001]
[1753144590943,0.12626836,3747.7,3747.6,0.001]
[1753144591346,2.79457158,3747.7,3747.6,0.001]
[1753144591733,15.1813515,3747.7,3747.6,0.001]
[1753144591913,15.15481293,3747.7,3747.6,0.001]
[1753144592109,7.60200322,3747.7,3747.6,0.001]
[1753144592315,7.70173301,3747.7,3747.6,0.001]
[1753144592922,3.08573301,3747.7,3747.6,0.001]
[1753144593127,7.43447158,3747.7,3747.6,0.001]
[1753144593328,7.69773301,3747.7,3747.6,0.001]
[1753144595012,9.28973301,3747.7,3747.6,0.001]
[1753144595213,2.79593301,3747.7,3747.6,0.001]
[1753144595416,7.42347158,3747.7,3747.6,0.001]
[1753144595630,7.39693301,3747.7,3747.6,0.001]
[1753144595849,7.29720322,3747.7,3747.6,0.001]
[1753144596035,2.66830322,3747.7,3747.6,0.001]
[1753144596223,7.39357158,3747.7,3747.6,0.001]
[1753144596538,7.36703301,3747.7,3747.6,0.001]
[1753144596735,2.76803301,3747.7,3747.6,0.001]
[1753144597049,2.69484179,3747.7,3747.6,0.001]
[1753144597249,4.62053857,3747.7,3747.6,0.001]
[1753144597415,7.28884179,3747.7,3747.6,0.001]
[1753144597618,7.26230322,3747.7,3747.6,0.001]
[1753144597849,2.66830322,3747.7,3747.6,0.001]
[1753144598047,0.02653857,3747.7,3747.6,0.4291]
[1753144598264,0.09972979,3747.7,3747.6,0.4291]
[1753144598947,0.02653857,3748.3,3747.6,0.4291]
[1753144599124,2.66794728,3748.2,3747.6,0.4291]
[1753144599325,0.09972979,3747.7,3747.6,0.4291]
[1753144601726,0.23252979,3747.7,3747.6,0.4291]
[1753144602029,0.1328,3747.7,3747.6,3.09747442]
[1753144602925,0.1328,3747.7,3747.6,3.92767442]
[1753144603129,0.1328,3747.7,3747.6,0.4291]
[1753144603341,0.23252979,3747.7,3747.6,0.4291]
[1753144603521,0.1328,3747.7,3747.6,0.4291]
[1753144603745,0.23252979,3747.7,3747.6,0.4291]
[1753144604263,0.1328,3747.7,3747.6,3.09747442]
[1753144604658,0.02653857,3748.2,3747.8,2.66821836]
[1753144604858,0.02653857,3748.2,3747.6,3.09747442]
[1753144604859,0.1328,3748.0,3747.9,3.42486083]
[1753144605058,0.23252979,3748.0,3747.9,3.42486083]
[1753144605259,0.1328,3748.0,3747.9,3.85296083]
[1753144605671,0.23252979,3748.0,3747.9,1.1848]
[1753144606227,0.23252979,3748.0,3747.9,0.4281]
[1753144606663,0.09972979,3747.7,3747.6,0.001]
[1753144606838,0.23252979,3747.7,3747.6,0.001]
[1753144607043,2.90083301,3747.7,3747.6,0.001]
[1753144608775,2.92737158,3747.7,3747.6,0.001]
[1753144611766,3.47737158,3747.7,3747.6,0.001]
[1753144612078,3.47737158,3747.7,3747.1,0.02]
[1753144612079,2.76838905,3747.2,3747.1,0.02]
[1753144612289,2.79492762,3747.2,3747.1,0.02]
[1753144612871,3.08472762,3747.2,3747.1,0.02]
[1753144613075,2.82282762,3747.2,3747.1,0.02]
[1753144617191,2.82282762,3747.2,3747.1,0.021]
[1753144618096,3.0259208,3747.2,3747.1,0.021]
[1753144618395,2.9980208,3747.2,3747.1,0.021]
[1753144618693,0.32936154,3747.2,3747.1,0.4838]
[1753144618895,0.20309318,3747.2,3747.1,1.2679]
[1753144619207,4.514,3747.7,3747.1,3.93663048]
[1753144619374,0.1328,3747.4,3747.1,3.47383048]
[1753144619697,0.1328,3747.4,3747.2,0.4628]
[1753144619901,0.1328,3747.4,3747.3,2.66858805]
[1753144620062,0.02653857,3748.4,3747.3,2.66858805]
[1753144620063,0.09972979,3748.2,3748.1,2.66801846]
[1753144620374,0.09972979,3748.5,3748.4,3.45190493]
[1753144620692,0.09972979,3748.5,3748.4,1.2469]